fUSD/lending_fUSD_20240301
["ID","MTS","AMOUNT","RATE_DAILY","PERIOD"]
[316020967,1709326301573,-799.41,0.00022904,2]
[316020968,1709326301583,-236.53031898,0.00022904,2]
[316020969,1709326301592,-7796.29,0.00022904,2]
[316020970,1709326301602,-523.02,0.00022904,2]
[316020971,1709326301613,-6476.17,0.00022904,2]
[316020972,1709326301623,-500.0,0.00022904,2]
[316020973,1709326301634,-3013.84,0.00022904,2]
[316020974,1709326301644,-1065.7,0.00022904,2]
[316020975,1709326301654,-1321.12,0.00022904,2]
[316020976,1709326301664,-1380.97,0.00022904,2]
[316020977,1709326301674,-731.52,0.00022904,2]
[316020978,1709326301685,-637.88,0.00022904,2]
[316020979,1709326301695,-599.33,0.00022904,2]
[316020980,1709326301705,-2089.41,0.00022904,2]
[316020981,1709326301715,-2359.76,0.00022904,2]
[316020982,1709326301724,-9598.11,0.00022904,2]
[316020983,1709326301734,-6057.78,0.00022904,2]
[316020984,1709326301743,-6067.78,0.00022904,2]
[316020985,1709326301753,-1158.19,0.00022904,2]
[316020986,1709326301763,-150.0,0.00022916,2]
[316020987,1709326301772,-150.0,0.00022916,2]
[316020988,1709326301782,-150.0,0.00022917,2]
[316020989,1709326301793,-150.0,0.0002294,2]
[316020990,1709326301802,-150.0,0.00022942,2]
[316020991,1709326301812,-150.0,0.00022965,2]
[316020992,1709326301822,-1250.0,0.0002297,2]
[316020993,1709326301833,-7389.63782786,0.00022973,2]
[316020994,1709326301844,-150.0,0.00022973,2]
[316020995,1709326301854,-150.0,0.00022977,2]
[316020996,1709326301864,-150.0,0.00022992,2]
[316020997,1709326301874,-6538.5537908,0.00022994,2]
[316020998,1709326301883,-3052.0178383,0.00022994,2]
[316020999,1709326301893,-6967.4856919,0.00022994,2]
[316021000,1709326301903,-205.9962816,0.00022996,2]
[316021001,1709326301913,-1299.229969,0.00022996,2]
[316021002,1709326301922,-1529.7993297,0.00022996,2]
[316021003,1709326301932,-1412.71448902,0.00022997,2]
[316021004,1709326301942,-337.15282917,0.00022997,2]
[316021005,1709326301951,-270.95480117,0.00022998,2]
[316021006,1709326301961,-165.67937759,0.00022998,2]
[316021007,1709326301970,-204.73380643,0.00022999,2]
[316021008,1709326301980,-4990.18398372,0.00022999,2]
[316021009,1709326301990,-1000.0,0.00022999,2]
[316021010,1709326301999,-150.0,0.00022999,2]
[316021011,1709326302008,-150.0,0.00022999,2]
[316021012,1709326302018,-150.0,0.00022999,2]
[316021013,1709326302029,-150.0,0.00022999,2]
[316021014,1709326302040,-150.0,0.00022999,2]
[316021015,1709326302049,-150.0,0.00022999,2]
[316021016,1709326302059,-150.0,0.00022999,2]
[316021017,1709326302069,-150.0,0.00022999,2]
[316021018,1709326302078,-150.0,0.00022999,2]
[316021019,1709326302088,-150.0,0.00022999,2]
[316021020,1709326302097,-150.0,0.00022999,2]
[316021021,1709326302107,-150.0,0.00022999,2]
[316021022,1709326302116,-150.0,0.00022999,2]
[316021023,1709326302126,-150.0,0.00022999,2]
[316021024,1709326302136,-150.0,0.00022999,2]
[316021025,1709326302146,-150.0,0.00022999,2]
[316021026,1709326302155,-150.0,0.00022999,2]
[316021027,1709326302166,-150.0,0.00022999,2]
[316021028,1709326302177,-150.0,0.00022999,2]
[316021029,1709326302187,-150.0,0.00022999,2]
[316021030,1709326302198,-150.0,0.00022999,2]
[316021031,1709326302207,-150.0,0.00022999,2]
[316021032,1709326302217,-150.0,0.00022999,2]
[316021033,1709326302228,-263.61161055,0.00022999,2]
[316021034,1709326302238,-15907652.66717385,0.00023,2]
[316021035,1709326302807,-1047760.89038642,0.00023,2]
[316021036,1709326302819,-389651.1135751,0.00023,2]
[316021037,1709326302831,-5241.4225435,0.00023,2]
[316021038,1709326302842,-11352.59560114,0.00023,2]
[316021039,1709326302854,-6583.43057468,0.00023,2]
[316021040,1709326302865,-64696.78560391,0.00023,2]
[316021041,1709326302904,-4691.09,0.00022356,2]
[316021042,1709326302914,-500.0,0.00022575,2]
[316021043,1709326302924,-872.49428703,0.00022684,2]
[316021044,1709326302936,-122.96571297,0.00022684,2]
[316021045,1709326302946,-3068.24858922,0.00022799,2]
[316021046,1709326302956,-9039.44956592,0.00023,2]
[316021047,1709326302968,-20339.57998685,0.00023,2]
[316021048,1709326302985,-8381.50179088,0.00023,2]
[316021049,1709326302996,-1417.88756073,0.00023,2]
[316021050,1709326303123,-2743.69091685,0.00022465,2]
[316021051,1709326303396,-500.0,0.00021917,2]
[316021052,1709326303407,-1947.39908315,0.00022465,2]
[316021053,1709326303417,-4691.09,0.00022575,2]
[316021054,1709326303427,-500.0,0.00022684,2]
[316021055,1709326303437,-4691.09,0.00022684,2]
[316021056,1709326303451,-995.46,0.00022794,2]
[316021057,1709326303460,-500.0,0.00022794,2]
[316021058,1709326303470,-4691.09,0.00022794,2]
[316021059,1709326303480,-995.46,0.00022904,2]
[316021060,1709326303490,-500.0,0.00022904,2]
[316021061,1709326303500,-51098.50743761,0.00023,2]
[316021062,1709326303512,-297.27599253,0.00023,2]
[316021063,1709326303734,-301.15,0.00021917,2]
[316021064,1709326303748,-198.85,0.00021917,2]
[316021065,1709326303757,-13464.97628732,0.00023,2]
[316021066,1709326303778,-500.0,0.00021917,2]
[316021067,1709326303788,-8991.09229064,0.00023,2]
[316021068,1709326303802,-1467.29741007,0.00023,2]
[316021069,1709326303813,-354.0027771,0.00023,2]
[316021070,1709326303836,-383.57266039,0.00021917,2]
[316021071,1709326303857,-116.42733961,0.00021917,2]
[316021072,1709326303867,-500.0,0.00022027,2]
[316021073,1709326303877,-583.57266039,0.00022904,2]
[316021074,1709326303890,-472.37513255,0.00022904,2]
[316021075,1709326303902,-366.43596909,0.00022904,2]
[316021076,1709326303915,-778.69852469,0.00022904,2]
[316021077,1709326303927,-1459.38695522,0.00022904,2]
[316021078,1709326303940,-1030.62075806,0.00022904,2]
[316021079,1709326303950,-12859.53614831,0.00023,2]
[316021080,1709326303962,-263.40749848,0.00023,2]
[316021081,1709326303974,-3084.7817929,0.00023,2]
[316021082,1709326304091,-11575.09837655,0.00023,2]
[316021083,1709326304103,-49224.3054,0.00023,2]
[316021084,1709326304561,-500.0,0.00021917,2]
[316021085,1709326304571,-500.0,0.00021917,2]
[316021086,1709326304582,-500.0,0.00022027,2]
[316021087,1709326304593,-264.99210869,0.00022027,2]
[316021088,1709326304603,-500.0,0.00022027,2]
[316021089,1709326304614,-363.58,0.00022136,2]
[316021090,1709326304623,-172.8,0.00022136,2]
[316021091,1709326304633,-150.0,0.00022585,2]
[316021092,1709326304643,-1753.47193122,0.00023,2]
[316021093,1709326304698,-500.0,0.00021917,2]
[316021094,1709326304708,-264.28432,0.00021917,2]
[316021095,1709326304721,-235.71568,0.00021917,2]
[316021096,1709326304730,-338.36673182,0.00021917,2]
[316021097,1709326304747,-161.63326818,0.00021917,2]
[316021098,1709326304757,-611.19527436,0.00023,2]
[316021099,1709326304770,-302.0,0.00023,2]
[316021100,1709326304788,-1943.9032275,0.00023,2]
[316021101,1709326304804,-19478.58299781,0.00023,2]
[316021102,1709326304816,-776.0659798,0.00023,2]
[316021103,1709326304844,-8320.68834768,0.00023,2]
[316021104,1709326304857,-341.04,0.00023,2]
[316021105,1709326304877,-2693.73745597,0.00023,2]
[316021106,1709326304891,-5471.27853494,0.00023,2]
[316021107,1709326304905,-652.53999997,0.00023,2]
[316021108,1709326304918,-2748.93205875,0.00023,2]
[316021109,1709326304931,-368.265786,0.00023,2]
[316021110,1709326304944,-382.0670588,0.00023,2]
[316021111,1709326304967,-94942.10226195,0.00023,2]
[316021112,1709326306076,-500.0,0.00021917,2]
[316021113,1709326306093,-500.0,0.00021917,2]
[316021114,1709326306110,-500.0,0.00021917,2]
[316021115,1709326306128,-500.0,0.00021917,2]
[316021116,1709326306146,-132.73184236,0.00022585,2]
[316021117,1709326306168,-17.26815764,0.00022585,2]
[316021118,1709326306192,-234.94526299,0.00022799,2]
[316021119,1709326306209,-2133.57886684,0.00022799,2]
[316021120,1709326306222,-699.72445939,0.00022799,2]
[316021121,1709326306232,-1950.67196602,0.000229,2]
[316021122,1709326306252,-9209.85011955,0.000229,2]
[316021123,1709326306262,-478.91043597,0.00023,2]
[316021124,1709326306275,-9722.0,0.00023,2]
[316021125,1709326306293,-3070.69094432,0.00023,2]
[316021126,1709326306306,-31118.137863,0.00023,2]
[316021127,1709326306323,-644.8206562,0.00023,2]
[316021128,1709326306759,-673.38761957,0.00023,2]
[316021129,1709326306772,-63395.09158133,0.00023,2]
[316021130,1709326566443,203.0,0.00018199,2]
[316021131,1709326596187,415.57785238,0.00018199,2]
[316021132,1709326943619,151.0,0.00026978,120]
[316021133,1709326986831,-400.0,0.00023,24]
[316021134,1709327075937,691.39,0.00018202,2]
[316021135,1709327198156,-151.23972517,0.0001894,2]
[316021136,1709327246175,-3.76027483,0.0001894,2]
[316021137,1709327246197,-203.0,0.00018941,2]
[316021138,1709327246219,-550.0,0.0002,3]
[316021139,1709327246239,-150.0,0.00020114,2]
[316021140,1709327246257,-250.0,0.00020134,2]
[316021141,1709327246278,-302.4,0.00020139,2]
[316021142,1709327246297,-250.0,0.00020173,2]
[316021143,1709327246316,-205.8,0.00020219,2]
[316021144,1709327246335,-250.0,0.00020263,2]
[316021145,1709327246355,-245.78,0.00020267,2]
[316021146,1709327246377,-1721.42,0.00020267,2]
[316021147,1709327246397,-150.0,0.00020278,2]
[316021148,1709327246417,-8230.45140224,0.00020279,2]
[316021156,1709327348109,-200.02,0.00019726,2]
[316021160,1709327366257,-2.98,0.00019726,2]
[316021161,1709327366279,-250.0,0.0002024,2]
[316021162,1709327366302,-1097.75522019,0.0002025,2]
[316021183,1709327431726,-250.0,0.00020149,2]
[316021184,1709327431736,-155.0,0.00020156,2]
[316021185,1709327431746,-200.0,0.00020157,2]
[316021186,1709327431756,-155.0,0.00020249,2]
[316021187,1709327431766,-3722.16477981,0.0002025,2]
[316021188,1709327431776,-150.1927387,0.00020259,2]
[316021189,1709327431785,-300.0,0.00020271,2]
[316021190,1709327431796,-4475.79248149,0.00020272,2]
[316021191,1709327431815,-362.83751851,0.00020272,2]
[316021192,1709327431825,-15669.54859776,0.00020279,2]
[316021193,1709327431835,-500.0,0.00020294,2]
[316021194,1709327431844,-350.0,0.00020451,2]
[316021195,1709327431854,-678.81,0.00020466,2]
[316021196,1709327431864,-691.39,0.00020466,2]
[316021197,1709327431873,-697.6,0.00020497,2]
[316021198,1709327431883,-157.9218049,0.00020651,2]
[316021199,1709327431893,-172.0,0.00020751,2]
[316021200,1709327431903,-164.87,0.0002079,2]
[316021201,1709327431912,-499.99,0.0002079,2]
[316021202,1709327431923,-157.92180487,0.00020884,2]
[316021203,1709327431932,-150.46946535,0.00020916,2]
[316021204,1709327431942,-206.73222473,0.00020917,2]
[316021205,1709327431951,-515.96,0.00020917,2]
[316021206,1709327431961,-164.87,0.0002105,2]
[316021207,1709327431971,-21546.0,0.00021053,2]
[316021208,1709327431980,-6542.13,0.00021096,2]
[316021209,1709327431990,-963.02,0.00021096,2]
[316021210,1709327432008,-174.81,0.00021104,2]
[316021211,1709327432020,-157.92180487,0.00021117,2]
[316021212,1709327432030,-170.07,0.00021132,2]
[316021213,1709327432041,-350.0,0.00021136,2]
[316021214,1709327432050,-4122.96682963,0.000212,2]
[316021215,1709327432060,-164.87,0.0002131,2]
[316021216,1709327432070,-157.92180487,0.00021351,2]
[316021217,1709327432080,-1000.0,0.00021385,2]
[316021218,1709327432090,-208.0,0.0002143,2]
[316021219,1709327432100,-172.0,0.00021436,2]
[316021220,1709327432110,-169.63,0.00021491,2]
[316021221,1709327432120,-1754.36828259,0.00021533,2]
[316021222,1709327432130,-203.0,0.00021556,4]
[316021223,1709327432139,-164.87,0.0002157,2]
[316021224,1709327432149,-157.92180487,0.00021584,2]
[316021225,1709327432159,-4245.7215,0.00021617,2]
[316021226,1709327432169,-599.657,0.00021617,2]
[316021227,1709327432180,-564.5306,0.00021617,2]
[316021228,1709327432190,-1463.109,0.00021617,2]
[316021229,1709327432199,-1000.0,0.00021617,2]
[316021230,1709327432209,-359398.7884,0.00021617,2]
[316021231,1709327432219,-5518.42,0.00021617,2]
[316021232,1709327432228,-39084.0349,0.00021617,2]
[316021233,1709327432238,-173.32,0.00021633,2]
[316021234,1709327432247,-1754.36828258,0.00021636,2]
[316021235,1709327432258,-209.27774555,0.00021707,2]
[316021236,1709327432272,-175507.37241399,0.00021717,2]
[316021237,1709327432281,-1754.36828258,0.0002174,2]
[316021238,1709327432291,-6733.463,0.000218,2]
[316021239,1709327432300,-1000.0,0.000218,2]
[316021240,1709327432310,-223.19622133,0.000218,2]
[316021241,1709327432319,-325.604393,0.00021808,2]
[316021242,1709327432329,-254.13900108,0.00021808,2]
[316021243,1709327432338,-5000.0,0.00021816,2]
[316021244,1709327432348,-55555.0,0.00021816,2]
[316021245,1709327432359,-644.7326,0.00021817,2]
[316021246,1709327432369,-500.0,0.00021817,2]
[316021247,1709327432378,-157.92180487,0.00021817,2]
[316021248,1709327432387,-459.40538364,0.00021817,2]
[316021249,1709327432397,-316.83876991,0.00021817,2]
[316021250,1709327432407,-247.5607571,0.00021817,2]
[316021251,1709327432417,-1738.86563283,0.00021817,2]
[316021252,1709327432427,-223.19622133,0.00021817,2]
[316021253,1709327432436,-382.56199663,0.00021817,2]
[316021254,1709327432446,-350.0,0.00021821,2]
[316021255,1709327432456,-164.87,0.0002183,2]
[316021256,1709327432465,-1754.36828258,0.00021843,2]
[316021257,1709327432475,-459.40538362,0.00021874,2]
[316021258,1709327432485,-53364.65307881,0.000219,2]
[316021259,1709327432496,-250.0,0.000219,2]
[316021260,1709327432506,-750.0,0.000219,2]
[316021261,1709327432516,-4000.0,0.000219,2]
[316021262,1709327432526,-209.27774555,0.00021906,2]
[316021263,1709327432538,-42386.39155399,0.00021915,2]
[316021264,1709327432548,-164.23873814,0.00021915,2]
[316021265,1709327432558,-268.37164607,0.00021915,2]
[316021266,1709327432568,-150.0,0.00021915,2]
[316021267,1709327432578,-268.37164607,0.00021915,2]
[316021268,1709327432588,-150.0,0.00021915,2]
[316021269,1709327432598,-268.37164607,0.00021915,2]
[316021270,1709327432609,-150.0,0.00021915,2]
[316021271,1709327432619,-268.37164607,0.00021916,2]
[316021272,1709327432628,-150.0,0.00021916,2]
[316021273,1709327432639,-515.24139617,0.00021917,2]
[316021274,1709327432649,-508.07725107,0.00021917,2]
[316021275,1709327432659,-504.12901882,0.00021917,2]
[316021276,1709327432669,-550.46435564,0.00021917,2]
[316021277,1709327432680,-387.20708796,0.00021917,2]
[316021278,1709327432690,-496.90845914,0.00021917,2]
[316021279,1709327432704,-508.32319887,0.00021917,2]
[316021280,1709327432714,-196.68499495,0.00021917,2]
[316021281,1709327432723,-500.0,0.00021917,2]
[316021282,1709327432733,-500.0,0.00021917,2]
[316021283,1709327432744,-500.0,0.00021917,2]
[316021284,1709327432754,-500.0,0.00021917,2]
[316021285,1709327432764,-500.0,0.00021917,2]
[316021286,1709327432773,-155.08303359,0.00021917,2]
[316021287,1709327432784,-500.0,0.00021917,2]
[316021288,1709327432795,-295.34912171,0.00021917,2]
[316021289,1709327432805,-520.44609555,0.00021917,2]
[316021290,1709327432818,-507.16032423,0.00021917,2]
[316021291,1709327432827,-500.0,0.00021917,2]
[316021292,1709327432837,-503.12774391,0.00021917,2]
[316021293,1709327432846,-502.42449334,0.00021917,2]
[316021294,1709327432856,-500.0,0.00021917,2]
[316021295,1709327432866,-500.0,0.00021917,2]
[316021296,1709327432876,-500.0,0.00021917,2]
[316021297,1709327432886,-500.0,0.00021917,2]
[316021298,1709327432895,-502.96672294,0.00021917,2]
[316021299,1709327432905,-500.0,0.00021917,2]
[316021300,1709327432914,-158.98805044,0.00021917,2]
[316021301,1709327432924,-500.0,0.00021917,2]
[316021302,1709327432933,-500.0,0.00021917,2]
[316021303,1709327432942,-500.0,0.00021917,2]
[316021304,1709327432952,-500.0,0.00021917,2]
[316021305,1709327432961,-523.47653132,0.00021917,2]
[316021306,1709327432971,-500.0,0.00021917,2]
[316021307,1709327432980,-500.0,0.00021917,2]
[316021308,1709327432989,-500.0,0.00021917,2]
[316021309,1709327432999,-619.3530111,0.00021917,2]
[316021310,1709327433008,-175.92101058,0.00021917,2]
[316021311,1709327433018,-500.0,0.00021917,2]
[316021312,1709327433027,-466.90799485,0.00021917,2]
[316021313,1709327433037,-500.0,0.00021917,2]
[316021314,1709327433047,-500.0,0.00021917,2]
[316021315,1709327433056,-510.33386553,0.00021917,2]
[316021316,1709327433065,-500.0,0.00021917,2]
[316021317,1709327433074,-500.0,0.00021917,2]
[316021318,1709327433083,-500.0,0.00021917,2]
[316021319,1709327433093,-510.42147758,0.00021917,2]
[316021320,1709327433102,-500.0,0.00021917,2]
[316021321,1709327433458,-527.23615404,0.00021917,2]
[316021322,1709327433469,-534.00572542,0.00021917,2]
[316021323,1709327433478,-500.0,0.00021917,2]
[316021324,1709327433488,-500.0,0.00021917,2]
[316021325,1709327433498,-500.0,0.00021917,2]
[316021326,1709327433508,-500.0,0.00021917,2]
[316021327,1709327433517,-500.0,0.00021917,2]
[316021328,1709327433527,-257.41668365,0.00021917,2]
[316021329,1709327433536,-500.0,0.00021917,2]
[316021330,1709327433547,-500.0,0.00021917,2]
[316021331,1709327433557,-500.0,0.00021917,2]
[316021332,1709327433566,-500.0,0.00021917,2]
[316021333,1709327433576,-505.79793721,0.00021917,2]
[316021334,1709327433585,-500.0,0.00021917,2]
[316021335,1709327433595,-500.0,0.00021917,2]
[316021336,1709327433604,-500.0,0.00021917,2]
[316021337,1709327433614,-501.08895828,0.00021917,2]
[316021338,1709327433624,-500.0,0.00021917,2]
[316021339,1709327433633,-500.0,0.00021917,2]
[316021340,1709327433642,-500.0,0.00021917,2]
[316021341,1709327433651,-500.0,0.00021917,2]
[316021342,1709327433660,-510.59790702,0.00021917,2]
[316021343,1709327433670,-500.0,0.00021917,2]
[316021344,1709327433681,-500.0,0.00021917,2]
[316021345,1709327433691,-500.0,0.00021917,2]
[316021346,1709327433701,-506.22865143,0.00021917,2]
[316021347,1709327433711,-500.0,0.00021917,2]
[316021348,1709327433723,-500.0,0.00021917,2]
[316021349,1709327433732,-500.0,0.00021917,2]
[316021350,1709327433741,-500.0,0.00021917,2]
[316021351,1709327433750,-500.0,0.00021917,2]
[316021352,1709327433759,-500.0,0.00021917,2]
[316021353,1709327433770,-500.0,0.00021917,2]
[316021354,1709327433779,-510.70170403,0.00021917,2]
[316021355,1709327433789,-500.0,0.00021917,2]
[316021356,1709327433801,-500.0,0.00021917,2]
[316021357,1709327433812,-500.0,0.00021917,2]
[316021358,1709327433821,-500.0,0.00021917,2]
[316021359,1709327433831,-500.0,0.00021917,2]
[316021360,1709327433840,-500.0,0.00021917,2]
[316021361,1709327433850,-500.0,0.00021917,2]
[316021362,1709327433859,-503.57405949,0.00021917,2]
[316021363,1709327433869,-500.0,0.00021917,2]
[316021364,1709327433879,-500.0,0.00021917,2]
[316021365,1709327433890,-500.0,0.00021917,2]
[316021366,1709327433900,-500.0,0.00021917,2]
[316021367,1709327433909,-500.0,0.00021917,2]
[316021368,1709327433920,-609.85102892,0.00021917,2]
[316021369,1709327433930,-500.0,0.00021917,2]
[316021370,1709327433940,-500.0,0.00021917,2]
[316021371,1709327433950,-500.0,0.00021917,2]
[316021372,1709327433960,-500.0,0.00021917,2]
[316021373,1709327433969,-500.0,0.00021917,2]
[316021374,1709327433979,-572.56,0.00021917,2]
[316021375,1709327433988,-517.41646706,0.00021917,2]
[316021376,1709327433998,-500.0,0.00021917,2]
[316021377,1709327434008,-500.0,0.00021917,2]
[316021378,1709327434017,-500.0,0.00021917,2]
[316021379,1709327434027,-500.0,0.00021917,2]
[316021380,1709327434037,-500.0,0.00021917,2]
[316021381,1709327434048,-508.83310281,0.00021917,2]
[316021382,1709327434058,-500.0,0.00021917,2]
[316021383,1709327434067,-500.0,0.00021917,2]
[316021384,1709327434077,-500.0,0.00021917,2]
[316021385,1709327434087,-500.0,0.00021917,2]
[316021386,1709327434096,-503.4721737,0.00021917,2]
[316021387,1709327434105,-500.0,0.00021917,2]
[316021388,1709327434114,-500.0,0.00021917,2]
[316021389,1709327434123,-500.0,0.00021917,2]
[316021390,1709327434133,-500.0,0.00021917,2]
[316021391,1709327434143,-500.0,0.00021917,2]
[316021392,1709327434153,-500.0,0.00021917,2]
[316021393,1709327434162,-500.0,0.00021917,2]
[316021394,1709327434172,-500.0,0.00021917,2]
[316021395,1709327434181,-500.0,0.00021917,2]
[316021396,1709327434191,-500.0,0.00021917,2]
[316021397,1709327434201,-500.0,0.00021917,2]
[316021398,1709327434211,-500.0,0.00021917,2]
[316021399,1709327434221,-500.0,0.00021917,2]
[316021400,1709327434231,-500.0,0.00021917,2]
[316021401,1709327434241,-500.0,0.00021917,2]
[316021402,1709327434252,-500.0,0.00021917,2]
[316021403,1709327434262,-500.0,0.00021917,2]
[316021404,1709327434273,-500.0,0.00021917,2]
[316021405,1709327434283,-500.0,0.00021917,2]
[316021406,1709327434293,-500.0,0.00021917,2]
[316021407,1709327434306,-500.0,0.00021917,2]
[316021408,1709327434316,-500.0,0.00021917,2]
[316021409,1709327434325,-500.0,0.00021917,2]
[316021410,1709327434334,-500.0,0.00021917,2]
[316021411,1709327434344,-500.0,0.00021917,2]
[316021412,1709327434353,-500.0,0.00021917,2]
[316021413,1709327434362,-704.59,0.00021917,2]
[316021414,1709327434372,-500.0,0.00021917,2]
[316021415,1709327434382,-500.0,0.00021917,2]
[316021416,1709327434391,-500.0,0.00021917,2]
[316021417,1709327434401,-500.0,0.00021917,2]
[316021418,1709327434411,-500.0,0.00021917,2]
[316021419,1709327434421,-500.0,0.00021917,2]
[316021420,1709327434432,-500.0,0.00021917,2]
[316021421,1709327434443,-500.0,0.00021917,2]
[316021422,1709327434454,-500.0,0.00021917,2]
[316021423,1709327434464,-500.0,0.00021917,2]
[316021424,1709327434474,-500.0,0.00021917,2]
[316021425,1709327434483,-500.33947388,0.00021917,2]
[316021426,1709327434493,-500.0,0.00021917,2]
[316021427,1709327434504,-500.0,0.00021917,2]
[316021428,1709327434513,-500.0,0.00021917,2]
[316021429,1709327434523,-500.0,0.00021917,2]
[316021430,1709327434533,-500.0,0.00021917,2]
[316021431,1709327434543,-597.89,0.00021917,2]
[316021432,1709327434555,-500.0,0.00021917,2]
[316021433,1709327434564,-500.0,0.00021917,2]
[316021434,1709327434575,-500.0,0.00021917,2]
[316021435,1709327434585,-545.20002118,0.00021917,2]
[316021436,1709327434594,-500.0,0.00021917,2]
[316021437,1709327434604,-500.0,0.00021917,2]
[316021438,1709327434613,-500.0,0.00021917,2]
[316021439,1709327434623,-500.0,0.00021917,2]
[316021440,1709327434632,-500.0,0.00021917,2]
[316021441,1709327434642,-247.60409467,0.00021917,2]
[316021442,1709327434652,-500.0,0.00021917,2]
[316021443,1709327434662,-500.0,0.00021917,2]
[316021444,1709327434672,-500.67069779,0.00021917,2]
[316021445,1709327434682,-500.0,0.00021917,2]
[316021446,1709327434691,-500.0,0.00021917,2]
[316021447,1709327434702,-500.0,0.00021917,2]
[316021448,1709327434711,-154.57636514,0.00021917,2]
[316021449,1709327434721,-500.0,0.00021917,2]
[316021450,1709327434737,-500.0,0.00021917,2]
[316021451,1709327434748,-500.0,0.00021917,2]
[316021452,1709327434758,-500.0,0.00021917,2]
[316021453,1709327434767,-500.0,0.00021917,2]
[316021454,1709327434776,-500.0,0.00021917,2]
[316021455,1709327434785,-500.0,0.00021917,2]
[316021456,1709327434795,-513.99692109,0.00021917,2]
[316021457,1709327434806,-498.2437597,0.00021917,2]
[316021458,1709327434816,-500.0,0.00021917,2]
[316021459,1709327434825,-500.0,0.00021917,2]
[316021460,1709327434834,-500.0,0.00021917,2]
[316021461,1709327434844,-500.0,0.00021917,2]
[316021462,1709327434853,-500.0,0.00021917,2]
[316021463,1709327434862,-500.0,0.00021917,2]
[316021464,1709327434871,-500.0,0.00021917,2]
[316021465,1709327434880,-500.0,0.00021917,2]
[316021466,1709327434890,-500.0,0.00021917,2]
[316021467,1709327434899,-500.0,0.00021917,2]
[316021468,1709327434908,-500.0,0.00021917,2]
[316021469,1709327434918,-500.0,0.00021917,2]
[316021470,1709327434927,-500.0,0.00021917,2]
[316021471,1709327434936,-500.0,0.00021917,2]
[316021472,1709327434945,-500.0,0.00021917,2]
[316021473,1709327434955,-500.0,0.00021917,2]
[316021474,1709327434964,-500.0,0.00021917,2]
[316021475,1709327434973,-500.0,0.00021917,2]
[316021476,1709327434982,-500.0,0.00021917,2]
[316021477,1709327434992,-500.0,0.00021917,2]
[316021478,1709327435001,-500.0,0.00021917,2]
[316021479,1709327435010,-500.0,0.00021917,2]
[316021480,1709327435020,-500.0,0.00021917,2]
[316021481,1709327435030,-250.02887319,0.00021917,2]
[316021482,1709327435039,-500.0,0.00021917,2]
[316021483,1709327435052,-500.0,0.00021917,2]
[316021484,1709327435061,-500.0,0.00021917,2]
[316021485,1709327435072,-500.0,0.00021917,2]
[316021486,1709327435081,-500.0,0.00021917,2]
[316021487,1709327435091,-500.0,0.00021917,2]
[316021488,1709327435101,-500.0,0.00021917,2]
[316021489,1709327435111,-500.0,0.00021917,2]
[316021490,1709327435120,-460.78574717,0.00021917,2]
[316021491,1709327435130,-500.0,0.00021917,2]
[316021492,1709327435140,-500.0,0.00021917,2]
[316021493,1709327435150,-500.0,0.00021917,2]
[316021494,1709327435159,-500.0,0.00021917,2]
[316021495,1709327435169,-500.0,0.00021917,2]
[316021496,1709327435178,-644.05,0.00021917,2]